[Event "December 5 Early 2023"]
[Site "https://www.chess.com"]
[Date "2023.12.05"]
[Round "4"]
[White "Pakleza, Zbigniew"]
[Black "Kozlov, Gennady"]
[Result "0-1"]
[Board "76"]
[TimeControl "180+1"]
[WhiteFideId "1119290"]
[BlackFideId "4191668"]
[WhiteElo "2713"]
[BlackElo "2540"]
[WhiteTeam "POL"]
[BlackTeam "ESP"]
[WhiteClock "0:00:00"]
[BlackClock "0:01:28"]

1. d4 {[%clk 0:03:00]}  e6 {[%clk 0:02:57]} 2. Nf3 {[%clk 0:03:01]}  Nf6 {[%clk 0:02:57]} 3. Bf4 {[%clk 0:03:01]}  b6 {[%clk 0:02:57]} 4. e3 {[%clk 0:03:01]}  Bb7 {[%clk 0:02:58]} 5. h3 {[%clk 0:03:01]}  Be7 {[%clk 0:02:58]} 6. Nbd2 {[%clk 0:03:01]}  O-O {[%clk 0:02:58]} 7. Bd3 {[%clk 0:03:01]}  c5 {[%clk 0:02:58]} 8. c3 {[%clk 0:03:02]}  d5 {[%clk 0:02:58]} 9. O-O {[%clk 0:03:01]}  Nc6 {[%clk 0:02:59]} 10. Bh2 {[%clk 0:02:58]}  Bd6 {[%clk 0:02:59]} 11. Ne5 {[%clk 0:02:58]}  Bxe5 {[%clk 0:02:56]} 12. dxe5 {[%clk 0:02:59]}  Nd7 {[%clk 0:02:56]} 13. f4 {[%clk 0:02:59]}  c4 {[%clk 0:02:56]} 14. Bc2 {[%clk 0:02:59]}  Nc5 {[%clk 0:02:57]} 15. Nf3 {[%clk 0:02:57]}  Ne4 {[%clk 0:02:55]} 16. Qe1 {[%clk 0:02:47]}  Ne7 {[%clk 0:02:54]} 17. g4 {[%clk 0:02:39]}  Qc7 {[%clk 0:02:53]} 18. Bg3 {[%clk 0:02:27]}  Qc5 {[%clk 0:02:53]} 19. Kh2 {[%clk 0:02:25]}  b5 {[%clk 0:02:52]} 20. a3 {[%clk 0:02:23]}  a5 {[%clk 0:02:52]} 21. Bh4 {[%clk 0:02:17]}  Nc6 {[%clk 0:02:52]} 22. Ng5 {[%clk 0:01:43]}  Ne7 {[%clk 0:02:48]} 23. Rd1 {[%clk 0:01:23]}  Ng6 {[%clk 0:02:46]} 24. Rd4 {[%clk 0:01:14]}  Nxg5 {[%clk 0:02:37]} 25. Bxg5 {[%clk 0:01:14]}  b4 {[%clk 0:02:37]} 26. h4 {[%clk 0:00:59]}  Rfb8 {[%clk 0:02:34]} 27. h5 {[%clk 0:00:58]}  Nf8 {[%clk 0:02:34]} 28. f5 {[%clk 0:00:52]}  Nd7 {[%clk 0:02:17]} 29. e4 {[%clk 0:00:45]}  dxe4 {[%clk 0:02:13]} 30. Rxd7 {[%clk 0:00:41]}  Qxe5+ {[%clk 0:02:13]} 31. Qg3 {[%clk 0:00:39]}  Qb5 {[%clk 0:02:14]} 32. fxe6 {[%clk 0:00:38]}  fxe6 {[%clk 0:02:12]} 33. Rff7 {[%clk 0:00:37]}  Qxg5 {[%clk 0:02:10]} 34. Rxg7+ {[%clk 0:00:22]}  Qxg7 {[%clk 0:02:10]} 35. Rxg7+ {[%clk 0:00:23]}  Kxg7 {[%clk 0:02:10]} 36. Qe5+ {[%clk 0:00:21]}  Kf7 {[%clk 0:02:10]} 37. h6 {[%clk 0:00:16]}  bxc3 {[%clk 0:02:03]} 38. bxc3 {[%clk 0:00:15]}  Bd5 {[%clk 0:02:03]} 39. Bxe4 {[%clk 0:00:10]}  Rb2+ {[%clk 0:02:02]} 40. Kg3 {[%clk 0:00:10]}  Bxe4 {[%clk 0:01:52]} 41. Qxe4 {[%clk 0:00:11]}  Rh8 {[%clk 0:01:48]} 42. Qe5 {[%clk 0:00:11]}  Rg8 {[%clk 0:01:45]} 43. g5 {[%clk 0:00:05]}  Rg6 {[%clk 0:01:38]} 44. Qc7+ {[%clk 0:00:04]}  Kg8 {[%clk 0:01:37]} 45. Qd8+ {[%clk 0:00:03]}  Kf7 {[%clk 0:01:38]} 46. Qd7+ {[%clk 0:00:03]}  Kf8 {[%clk 0:01:38]} 47. Qxh7 {[%clk 0:00:03]}  Rxg5+ {[%clk 0:01:37]} 48. Kf4 {[%clk 0:00:03]}  Rf5+ {[%clk 0:01:37]} 49. Ke3 {[%clk 0:00:02]}  Rg2 {[%clk 0:01:33]} 50. Qc7 {[%clk 0:00:01]}  Rg8 {[%clk 0:01:28]} 51. h7 {[%clk 0:00:02]}  Rh8 {[%clk 0:01:28]} 52. Qd7 {[%clk 0:00:02]}  Rf7 {[%clk 0:01:28]} 53. Qxe6 {[%clk 0:00:02]}  Re7 {[%clk 0:01:28]} 54. Qxe7+ {[%clk 0:00:02]}  Kxe7 {[%clk 0:01:29]} 55. Kd4 {[%clk 0:00:00]}  Rxh7 {[%clk 0:01:28]} 0-1

[Event "December 5 Early 2023"]
[Site "https://www.chess.com"]
[Date "2023.12.05"]
[Round "4"]
[White "Chernomordik, Pavel"]
[Black "Paltrinieri, Nicholas"]
[Result "1-0"]
[Board "79"]
[TimeControl "180+1"]
[WhiteFideId "2804530"]
[BlackFideId "828262"]
[WhiteElo "2524"]
[BlackElo "2703"]
[WhiteTeam "ISR"]
[BlackTeam "ITA"]
[WhiteClock "0:00:21"]
[BlackClock "0:00:02"]

1. e4 {[%clk 0:03:00]}  g6 {[%clk 0:03:00]} 2. d4 {[%clk 0:02:59]}  Bg7 {[%clk 0:03:01]} 3. Nc3 {[%clk 0:02:59]}  d6 {[%clk 0:03:01]} 4. f4 {[%clk 0:02:58]}  a6 {[%clk 0:02:59]} 5. Nf3 {[%clk 0:02:57]}  e6 {[%clk 0:03:00]} 6. Bd3 {[%clk 0:02:51]}  Ne7 {[%clk 0:02:59]} 7. a4 {[%clk 0:02:40]}  b6 {[%clk 0:02:59]} 8. O-O {[%clk 0:02:38]}  Bb7 {[%clk 0:02:59]} 9. Be3 {[%clk 0:02:36]}  Nd7 {[%clk 0:02:57]} 10. Qe1 {[%clk 0:02:33]}  c5 {[%clk 0:02:56]} 11. Rd1 {[%clk 0:02:29]}  Qc7 {[%clk 0:02:56]} 12. f5 {[%clk 0:02:20]}  exf5 {[%clk 0:02:14]} 13. exf5 {[%clk 0:02:11]}  Bxf3 {[%clk 0:02:09]} 14. Rxf3 {[%clk 0:02:08]}  cxd4 {[%clk 0:02:10]} 15. Be4 {[%clk 0:02:07]}  dxc3 {[%clk 0:01:25]} 16. Bxa8 {[%clk 0:02:01]}  O-O {[%clk 0:01:25]} 17. Be4 {[%clk 0:01:58]}  cxb2 {[%clk 0:01:23]} 18. fxg6 {[%clk 0:01:46]}  hxg6 {[%clk 0:01:20]} 19. Qh4 {[%clk 0:01:44]}  Re8 {[%clk 0:01:09]} 20. Rh3 {[%clk 0:01:18]}  Nf6 {[%clk 0:01:01]} 21. Bd3 {[%clk 0:01:04]}  Nh5 {[%clk 0:00:33]} 22. g4 {[%clk 0:00:57]}  Nf6 {[%clk 0:00:32]} 23. Rf3 {[%clk 0:00:47]}  Nfd5 {[%clk 0:00:27]} 24. Bg5 {[%clk 0:00:39]}  Nc3 {[%clk 0:00:20]} 25. Bf6 {[%clk 0:00:31]}  Qc5+ {[%clk 0:00:14]} 26. Kg2 {[%clk 0:00:29]}  Nxd1 {[%clk 0:00:14]} 27. Bxg7 {[%clk 0:00:26]}  Kxg7 {[%clk 0:00:03]} 28. Qf6+ {[%clk 0:00:26]}  Kh6 {[%clk 0:00:03]} 29. Rh3+ {[%clk 0:00:23]}  Qh5 {[%clk 0:00:03]} 30. g5+ {[%clk 0:00:21]}  Kh7 {[%clk 0:00:02]} 31. Rxh5+ {[%clk 0:00:21]}  Kg8 {[%clk 0:00:02]} 32. Rh8# {[%clk 0:00:21]} 1-0

[Event "December 5 Early 2023"]
[Site "https://www.chess.com"]
[Date "2023.12.05"]
[Round "4"]
[White "Hambleton, Aman"]
[Black "Eugene, Floryan"]
[Result "1-0"]
[Board "80"]
[TimeControl "180+1"]
[WhiteFideId "2606577"]
[BlackFideId "20694784"]
[WhiteElo "2701"]
[BlackElo "2523"]
[WhiteTeam "CAN"]
[BlackTeam "FRA"]
[WhiteClock "0:00:10"]
[BlackClock "0:00:06"]

1. d4 {[%clk 0:03:00]}  f5 {[%clk 0:02:59]} 2. c4 {[%clk 0:03:00]}  Nf6 {[%clk 0:02:58]} 3. h4 {[%clk 0:02:55]}  e6 {[%clk 0:02:55]} 4. g3 {[%clk 0:02:55]}  b6 {[%clk 0:02:36]} 5. Bg2 {[%clk 0:02:54]}  Ne4 {[%clk 0:02:33]} 6. Nd2 {[%clk 0:01:04]}  Bb7 {[%clk 0:02:28]} 7. Nxe4 {[%clk 0:00:41]}  Bxe4 {[%clk 0:02:22]} 8. Bxe4 {[%clk 0:00:36]}  fxe4 {[%clk 0:02:23]} 9. Bg5 {[%clk 0:00:32]}  Bb4+ {[%clk 0:02:17]} 10. Kf1 {[%clk 0:00:30]}  Be7 {[%clk 0:02:17]} 11. Qc2 {[%clk 0:00:18]}  d5 {[%clk 0:02:11]} 12. Nh3 {[%clk 0:00:06]}  O-O {[%clk 0:02:10]} 13. Nf4 {[%clk 0:00:01]}  Bxg5 {[%clk 0:01:52]} 14. hxg5 {[%clk 0:00:02]}  Qd7 {[%clk 0:01:45]} 15. Rc1 {[%clk 0:00:02]}  c6 {[%clk 0:01:44]} 16. cxd5 {[%clk 0:00:03]}  exd5 {[%clk 0:01:43]} 17. Kg2 {[%clk 0:00:03]}  a5 {[%clk 0:01:31]} 18. e3 {[%clk 0:00:03]}  Ra7 {[%clk 0:01:30]} 19. Rh4 {[%clk 0:00:04]}  Qd6 {[%clk 0:01:23]} 20. Rch1 {[%clk 0:00:04]}  g6 {[%clk 0:01:23]} 21. a3 {[%clk 0:00:04]}  Rg7 {[%clk 0:01:22]} 22. Qb3 {[%clk 0:00:04]}  Nd7 {[%clk 0:01:21]} 23. a4 {[%clk 0:00:03]}  Qe7 {[%clk 0:01:13]} 24. Rg4 {[%clk 0:00:03]}  Rf5 {[%clk 0:01:11]} 25. Qc3 {[%clk 0:00:02]}  Nb8 {[%clk 0:01:06]} 26. Nh3 {[%clk 0:00:02]}  Rgf7 {[%clk 0:01:02]} 27. Rb1 {[%clk 0:00:02]}  Qf8 {[%clk 0:00:56]} 28. Rf4 {[%clk 0:00:02]}  Qd6 {[%clk 0:00:47]} 29. b4 {[%clk 0:00:02]}  axb4 {[%clk 0:00:38]} 30. Qxb4 {[%clk 0:00:03]}  Qxb4 {[%clk 0:00:35]} 31. Rxb4 {[%clk 0:00:04]}  Nd7 {[%clk 0:00:34]} 32. g4 {[%clk 0:00:03]}  Rxf4 {[%clk 0:00:33]} 33. Nxf4 {[%clk 0:00:04]}  Rf8 {[%clk 0:00:26]} 34. Rb2 {[%clk 0:00:03]}  Ra8 {[%clk 0:00:23]} 35. Rc2 {[%clk 0:00:03]}  Nb8 {[%clk 0:00:23]} 36. Rb2 {[%clk 0:00:02]}  Nd7 {[%clk 0:00:23]} 37. Rc2 {[%clk 0:00:02]}  Nb8 {[%clk 0:00:20]} 38. Ra2 {[%clk 0:00:02]}  Kf7 {[%clk 0:00:19]} 39. f3 {[%clk 0:00:03]}  exf3+ {[%clk 0:00:18]} 40. Kxf3 {[%clk 0:00:03]}  Ke7 {[%clk 0:00:19]} 41. Rh2 {[%clk 0:00:04]}  Rxa4 {[%clk 0:00:18]} 42. Rxh7+ {[%clk 0:00:04]}  Kd6 {[%clk 0:00:18]} 43. Nxg6 {[%clk 0:00:02]}  Nd7 {[%clk 0:00:18]} 44. Rh6 {[%clk 0:00:02]}  Kc7 {[%clk 0:00:16]} 45. Ne7 {[%clk 0:00:02]}  c5 {[%clk 0:00:14]} 46. Nxd5+ {[%clk 0:00:02]}  Kb7 {[%clk 0:00:14]} 47. g6 {[%clk 0:00:02]}  Ra8 {[%clk 0:00:12]} 48. Rh7 {[%clk 0:00:02]}  Kc6 {[%clk 0:00:12]} 49. Ne7+ {[%clk 0:00:03]}  Kd6 {[%clk 0:00:11]} 50. Nf5+ {[%clk 0:00:03]}  Ke6 {[%clk 0:00:11]} 51. Re7+ {[%clk 0:00:03]}  Kf6 {[%clk 0:00:11]} 52. Rxd7 {[%clk 0:00:04]}  c4 {[%clk 0:00:11]} 53. Rd6+ {[%clk 0:00:04]}  Kg5 {[%clk 0:00:11]} 54. Rxb6 {[%clk 0:00:04]}  Rc8 {[%clk 0:00:10]} 55. Rb2 {[%clk 0:00:04]}  c3 {[%clk 0:00:11]} 56. Rc2 {[%clk 0:00:05]}  Kxg6 {[%clk 0:00:11]} 57. Nd6 {[%clk 0:00:04]}  Rc6 {[%clk 0:00:11]} 58. Ne4 {[%clk 0:00:05]}  Rc8 {[%clk 0:00:09]} 59. Rxc3 {[%clk 0:00:06]}  Rf8+ {[%clk 0:00:10]} 60. Ke2 {[%clk 0:00:07]}  Re8 {[%clk 0:00:11]} 61. Kd3 {[%clk 0:00:07]}  Rb8 {[%clk 0:00:10]} 62. Rc6+ {[%clk 0:00:07]}  Kf7 {[%clk 0:00:10]} 63. d5 {[%clk 0:00:08]}  Rb1 {[%clk 0:00:09]} 64. Kd4 {[%clk 0:00:09]}  Rd1+ {[%clk 0:00:10]} 65. Ke5 {[%clk 0:00:10]}  Rg1 {[%clk 0:00:10]} 66. g5 {[%clk 0:00:10]}  Rg4 {[%clk 0:00:10]} 67. Kf5 {[%clk 0:00:10]}  Rg1 {[%clk 0:00:11]} 68. Rc7+ {[%clk 0:00:10]}  Kg8 {[%clk 0:00:10]} 69. d6 {[%clk 0:00:10]}  Rf1+ {[%clk 0:00:11]} 70. Kg6 {[%clk 0:00:10]}  Rf8 {[%clk 0:00:10]} 71. Nf6+ {[%clk 0:00:09]}  Rxf6+ {[%clk 0:00:06]} 72. gxf6 {[%clk 0:00:10]} 1-0

[Event "December 5 Early 2023"]
[Site "https://www.chess.com"]
[Date "2023.12.05"]
[Round "4"]
[White "Leyva Proenza, Richard"]
[Black "Nigalidze, Gaioz"]
[Result "0-1"]
[Board "83"]
[TimeControl "180+1"]
[WhiteFideId "3500985"]
[BlackFideId "13603078"]
[WhiteElo "2503"]
[BlackElo "2689"]
[WhiteTeam "VEN"]
[BlackTeam "GEO"]
[WhiteClock "0:00:17"]
[BlackClock "0:00:52"]

1. e4 {[%clk 0:03:00]}  c5 {[%clk 0:02:59]} 2. Nf3 {[%clk 0:03:00]}  d6 {[%clk 0:02:58]} 3. d4 {[%clk 0:03:00]}  cxd4 {[%clk 0:02:58]} 4. Nxd4 {[%clk 0:03:01]}  Nf6 {[%clk 0:02:57]} 5. Nc3 {[%clk 0:03:01]}  a6 {[%clk 0:02:56]} 6. Bc4 {[%clk 0:02:59]}  e6 {[%clk 0:02:56]} 7. Bb3 {[%clk 0:02:59]}  b5 {[%clk 0:02:55]} 8. f3 {[%clk 0:02:59]}  Qc7 {[%clk 0:02:54]} 9. Be3 {[%clk 0:02:59]}  Nbd7 {[%clk 0:02:53]} 10. Qd2 {[%clk 0:02:58]}  Nc5 {[%clk 0:02:52]} 11. a3 {[%clk 0:02:57]}  Nxb3 {[%clk 0:02:51]} 12. cxb3 {[%clk 0:02:58]}  Bb7 {[%clk 0:02:49]} 13. b4 {[%clk 0:02:58]}  Be7 {[%clk 0:02:49]} 14. Rc1 {[%clk 0:02:57]}  Qd7 {[%clk 0:02:47]} 15. Nb3 {[%clk 0:02:57]}  Rc8 {[%clk 0:02:43]} 16. O-O {[%clk 0:02:56]}  O-O {[%clk 0:02:43]} 17. Rfd1 {[%clk 0:02:55]}  Rfd8 {[%clk 0:02:43]} 18. Bb6 {[%clk 0:02:55]}  Rf8 {[%clk 0:02:41]} 19. Qf2 {[%clk 0:02:50]}  Ba8 {[%clk 0:02:40]} 20. Rd2 {[%clk 0:01:52]}  Qb7 {[%clk 0:02:35]} 21. Na5 {[%clk 0:01:48]}  Qb8 {[%clk 0:02:34]} 22. Ba7 {[%clk 0:01:46]}  Qc7 {[%clk 0:02:33]} 23. Bb6 {[%clk 0:01:46]}  Qb8 {[%clk 0:02:32]} 24. Ba7 {[%clk 0:01:35]}  Qc7 {[%clk 0:02:32]} 25. Rdc2 {[%clk 0:01:33]}  Qd7 {[%clk 0:02:30]} 26. Rd1 {[%clk 0:01:31]}  Nh5 {[%clk 0:02:23]} 27. Rcd2 {[%clk 0:01:30]}  Qc7 {[%clk 0:02:20]} 28. Bb6 {[%clk 0:01:28]}  Qb8 {[%clk 0:02:19]} 29. Ba7 {[%clk 0:01:22]}  Qc7 {[%clk 0:02:19]} 30. Qb6 {[%clk 0:01:18]}  Qxb6+ {[%clk 0:02:09]} 31. Bxb6 {[%clk 0:01:18]}  Nf6 {[%clk 0:02:05]} 32. Bd4 {[%clk 0:01:15]}  Nd7 {[%clk 0:02:04]} 33. Be3 {[%clk 0:01:07]}  Rfd8 {[%clk 0:02:01]} 34. Kf2 {[%clk 0:01:07]}  g5 {[%clk 0:01:59]} 35. h3 {[%clk 0:01:06]}  h6 {[%clk 0:01:59]} 36. Rc2 {[%clk 0:01:02]}  Ne5 {[%clk 0:01:58]} 37. Ke2 {[%clk 0:00:59]}  Kf8 {[%clk 0:01:55]} 38. Rdc1 {[%clk 0:00:59]}  Ke8 {[%clk 0:01:53]} 39. Bb6 {[%clk 0:00:57]}  Rd7 {[%clk 0:01:52]} 40. Nd1 {[%clk 0:00:57]}  Rxc2+ {[%clk 0:01:51]} 41. Rxc2 {[%clk 0:00:58]}  Bb7 {[%clk 0:01:48]} 42. Ne3 {[%clk 0:00:55]}  Bd8 {[%clk 0:01:44]} 43. Bxd8 {[%clk 0:00:52]}  Kxd8 {[%clk 0:01:43]} 44. Rc1 {[%clk 0:00:49]}  Rc7 {[%clk 0:01:40]} 45. Rh1 {[%clk 0:00:41]}  Ke7 {[%clk 0:01:30]} 46. Kd2 {[%clk 0:00:40]}  Bc8 {[%clk 0:01:16]} 47. h4 {[%clk 0:00:39]}  Bd7 {[%clk 0:01:15]} 48. hxg5 {[%clk 0:00:38]}  hxg5 {[%clk 0:01:14]} 49. Rh8 {[%clk 0:00:38]}  Be8 {[%clk 0:01:10]} 50. Rh5 {[%clk 0:00:33]}  Kf6 {[%clk 0:01:09]} 51. Rh6+ {[%clk 0:00:33]}  Kg7 {[%clk 0:01:09]} 52. Rh1 {[%clk 0:00:34]}  Ng6 {[%clk 0:01:08]} 53. Rd1 {[%clk 0:00:26]}  Kf6 {[%clk 0:01:07]} 54. Rh1 {[%clk 0:00:25]}  Ke5 {[%clk 0:00:58]} 55. Rh2 {[%clk 0:00:22]}  Kf4 {[%clk 0:00:55]} 56. Rh8 {[%clk 0:00:17]}  Nxh8 {[%clk 0:00:52]} 0-1

[Event "December 5 Early 2023"]
[Site "https://www.chess.com"]
[Date "2023.12.05"]
[Round "4"]
[White "Kuderinov, Kirill"]
[Black "Sreyas Payyappat"]
[Result "0-1"]
[Board "85"]
[TimeControl "180+1"]
[WhiteFideId "13701568"]
[BlackFideId "46674969"]
[WhiteElo "2674"]
[BlackElo "2497"]
[WhiteTeam "KAZ"]
[BlackTeam "IND"]
[WhiteClock "0:00:05"]
[BlackClock "0:00:12"]

1. e4 {[%clk 0:03:00]}  c6 {[%clk 0:02:59]} 2. d4 {[%clk 0:03:00]}  d5 {[%clk 0:02:59]} 3. e5 {[%clk 0:03:00]}  Bf5 {[%clk 0:02:59]} 4. Nf3 {[%clk 0:02:57]}  e6 {[%clk 0:02:51]} 5. Nbd2 {[%clk 0:02:47]}  Ne7 {[%clk 0:02:51]} 6. Be2 {[%clk 0:02:46]}  Ng6 {[%clk 0:02:52]} 7. Nf1 {[%clk 0:02:42]}  Na6 {[%clk 0:02:46]} 8. h3 {[%clk 0:02:35]}  Be4 {[%clk 0:02:23]} 9. Ng3 {[%clk 0:02:25]}  Nb4 {[%clk 0:02:06]} 10. Nxe4 {[%clk 0:02:20]}  dxe4 {[%clk 0:02:07]} 11. Ng5 {[%clk 0:02:16]}  Qxd4 {[%clk 0:02:01]} 12. O-O {[%clk 0:01:54]}  Qxe5 {[%clk 0:01:48]} 13. c3 {[%clk 0:01:47]}  Nd5 {[%clk 0:01:46]} 14. Qb3 {[%clk 0:01:36]}  Be7 {[%clk 0:01:29]} 15. Nxf7 {[%clk 0:00:54]}  Kxf7 {[%clk 0:01:19]} 16. f4 {[%clk 0:00:54]}  exf3 {[%clk 0:01:13]} 17. Bxf3 {[%clk 0:00:53]}  Nf6 {[%clk 0:01:11]} 18. Qxb7 {[%clk 0:00:52]}  Rhf8 {[%clk 0:00:54]} 19. b4 {[%clk 0:00:40]}  Kg8 {[%clk 0:00:52]} 20. Bb2 {[%clk 0:00:37]}  Nd5 {[%clk 0:00:43]} 21. Rae1 {[%clk 0:00:34]}  Qg3 {[%clk 0:00:34]} 22. Rxe6 {[%clk 0:00:30]}  Nh4 {[%clk 0:00:20]} 23. Rxe7 {[%clk 0:00:11]}  Nxe7 {[%clk 0:00:13]} 24. Qxe7 {[%clk 0:00:04]}  Rxf3 {[%clk 0:00:12]} 25. Rxf3 {[%clk 0:00:05]}  Qxg2# {[%clk 0:00:12]} 0-1

[Event "December 5 Early 2023"]
[Site "https://www.chess.com"]
[Date "2023.12.05"]
[Round "4"]
[White "Souleidis, Georgios"]
[Black "Tan, Jonathan"]
[Result "1/2-1/2"]
[Board "86"]
[TimeControl "180+1"]
[WhiteFideId "4206827"]
[BlackFideId "5200482"]
[WhiteElo "2672"]
[BlackElo "2496"]
[WhiteTeam "GRE"]
[BlackTeam "PHI"]
[WhiteClock "0:00:08"]
[BlackClock "0:00:22"]

1. e4 {[%clk 0:02:55]}  g6 {[%clk 0:02:59]} 2. d4 {[%clk 0:02:55]}  Bg7 {[%clk 0:03:00]} 3. Nc3 {[%clk 0:02:53]}  c6 {[%clk 0:03:00]} 4. Nf3 {[%clk 0:02:52]}  d5 {[%clk 0:03:01]} 5. h3 {[%clk 0:02:52]}  Nf6 {[%clk 0:02:59]} 6. e5 {[%clk 0:02:51]}  Ne4 {[%clk 0:02:59]} 7. Nxe4 {[%clk 0:02:51]}  dxe4 {[%clk 0:03:00]} 8. Ng5 {[%clk 0:02:52]}  c5 {[%clk 0:03:00]} 9. d5 {[%clk 0:02:47]}  Bxe5 {[%clk 0:02:53]} 10. Nxe4 {[%clk 0:02:46]}  Bf5 {[%clk 0:02:42]} 11. Ng3 {[%clk 0:02:15]}  Qd6 {[%clk 0:02:06]} 12. Nxf5 {[%clk 0:02:14]}  gxf5 {[%clk 0:02:06]} 13. Bd3 {[%clk 0:02:12]}  f4 {[%clk 0:01:59]} 14. c3 {[%clk 0:01:58]}  Nd7 {[%clk 0:01:57]} 15. O-O {[%clk 0:01:54]}  Qxd5 {[%clk 0:01:50]} 16. Qe2 {[%clk 0:01:52]}  f3 {[%clk 0:01:43]} 17. Qxf3 {[%clk 0:01:44]}  Qxf3 {[%clk 0:01:43]} 18. gxf3 {[%clk 0:01:45]}  O-O-O {[%clk 0:01:43]} 19. Re1 {[%clk 0:01:43]}  Bd6 {[%clk 0:01:39]} 20. Kf1 {[%clk 0:01:37]}  Ne5 {[%clk 0:01:35]} 21. Be2 {[%clk 0:01:31]}  Ng6 {[%clk 0:01:31]} 22. Be3 {[%clk 0:01:26]}  b6 {[%clk 0:01:29]} 23. a4 {[%clk 0:01:24]}  Rhg8 {[%clk 0:01:17]} 24. a5 {[%clk 0:01:23]}  Nf4 {[%clk 0:01:08]} 25. axb6 {[%clk 0:01:12]}  axb6 {[%clk 0:01:08]} 26. Ra8+ {[%clk 0:01:06]}  Kc7 {[%clk 0:01:06]} 27. Rxd8 {[%clk 0:00:37]}  Rxd8 {[%clk 0:01:03]} 28. h4 {[%clk 0:00:30]}  e6 {[%clk 0:00:59]} 29. Rd1 {[%clk 0:00:24]}  Nxe2 {[%clk 0:00:55]} 30. Kxe2 {[%clk 0:00:24]}  h5 {[%clk 0:00:54]} 31. Bg5 {[%clk 0:00:20]}  Ra8 {[%clk 0:00:53]} 32. Kd3 {[%clk 0:00:19]}  b5 {[%clk 0:00:50]} 33. Kc2 {[%clk 0:00:19]}  Ra4 {[%clk 0:00:46]} 34. Rg1 {[%clk 0:00:18]}  Be5 {[%clk 0:00:44]} 35. Rd1 {[%clk 0:00:14]}  f6 {[%clk 0:00:43]} 36. Be3 {[%clk 0:00:11]}  Kc6 {[%clk 0:00:41]} 37. Rh1 {[%clk 0:00:07]}  b4 {[%clk 0:00:35]} 38. Kb3 {[%clk 0:00:06]}  Ra8 {[%clk 0:00:34]} 39. cxb4 {[%clk 0:00:06]}  cxb4 {[%clk 0:00:34]} 40. Rc1+ {[%clk 0:00:05]}  Kd5 {[%clk 0:00:33]} 41. Rd1+ {[%clk 0:00:05]}  Kc6 {[%clk 0:00:32]} 42. Rc1+ {[%clk 0:00:06]}  Kd7 {[%clk 0:00:33]} 43. Rc4 {[%clk 0:00:06]}  Bd6 {[%clk 0:00:30]} 44. Bd2 {[%clk 0:00:06]}  Rb8 {[%clk 0:00:30]} 45. Bxb4 {[%clk 0:00:06]}  Rb5 {[%clk 0:00:30]} 46. Kc3 {[%clk 0:00:06]}  Bxb4+ {[%clk 0:00:26]} 47. Rxb4 {[%clk 0:00:07]}  Rf5 {[%clk 0:00:27]} 48. f4 {[%clk 0:00:06]}  e5 {[%clk 0:00:27]} 49. fxe5 {[%clk 0:00:07]}  fxe5 {[%clk 0:00:27]} 50. Rb5 {[%clk 0:00:06]}  Ke6 {[%clk 0:00:28]} 51. Rb6+ {[%clk 0:00:06]}  Kd5 {[%clk 0:00:28]} 52. Rh6 {[%clk 0:00:06]}  Rf3+ {[%clk 0:00:28]} 53. Kb4 {[%clk 0:00:06]}  Rxf2 {[%clk 0:00:28]} 54. b3 {[%clk 0:00:06]}  Rf4+ {[%clk 0:00:28]} 55. Ka5 {[%clk 0:00:05]}  Rxh4 {[%clk 0:00:29]} 56. b4 {[%clk 0:00:06]}  Rh1 {[%clk 0:00:29]} 57. b5 {[%clk 0:00:06]}  e4 {[%clk 0:00:27]} 58. Rh8 {[%clk 0:00:05]}  e3 {[%clk 0:00:27]} 59. Re8 {[%clk 0:00:04]}  Kd4 {[%clk 0:00:27]} 60. b6 {[%clk 0:00:04]}  Ra1+ {[%clk 0:00:26]} 61. Kb5 {[%clk 0:00:05]}  Rb1+ {[%clk 0:00:26]} 62. Kc6 {[%clk 0:00:05]}  Kd3 {[%clk 0:00:25]} 63. Rd8+ {[%clk 0:00:05]}  Kc2 {[%clk 0:00:24]} 64. Re8 {[%clk 0:00:06]}  Kd2 {[%clk 0:00:25]} 65. Rd8+ {[%clk 0:00:06]}  Ke1 {[%clk 0:00:25]} 66. Rd5 {[%clk 0:00:07]}  h4 {[%clk 0:00:25]} 67. Rh5 {[%clk 0:00:07]}  e2 {[%clk 0:00:25]} 68. Rxh4 {[%clk 0:00:07]}  Kd2 {[%clk 0:00:23]} 69. Rh2 {[%clk 0:00:07]}  Rc1+ {[%clk 0:00:22]} 70. Kd7 {[%clk 0:00:07]}  Rb1 {[%clk 0:00:22]} 71. Kc7 {[%clk 0:00:07]}  Kd1 {[%clk 0:00:22]} 72. Rxe2 {[%clk 0:00:06]}  Kxe2 {[%clk 0:00:22]} 73. b7 {[%clk 0:00:07]}  Rxb7+ {[%clk 0:00:22]} 74. Kxb7 {[%clk 0:00:08]} 1/2-1/2

[Event "December 5 Early 2023"]
[Site "https://www.chess.com"]
[Date "2023.12.05"]
[Round "4"]
[White "Nagare Kaivalya Sandip"]
[Black "Mazurkiewicz, Michal"]
[Result "1-0"]
[Board "88"]
[TimeControl "180+1"]
[WhiteFideId "25957929"]
[BlackFideId "1124943"]
[WhiteElo "2666"]
[BlackElo "2487"]
[WhiteTeam "IND"]
[BlackTeam "POL"]
[WhiteClock "0:01:53"]
[BlackClock "0:00:00"]

1. e4 {[%clk 0:03:00]}  d6 {[%clk 0:02:59]} 2. Nc3 {[%clk 0:02:59]}  Nf6 {[%clk 0:03:00]} 3. Nf3 {[%clk 0:03:00]}  c6 {[%clk 0:03:00]} 4. d3 {[%clk 0:03:00]}  Bg4 {[%clk 0:03:00]} 5. g3 {[%clk 0:03:01]}  e6 {[%clk 0:02:58]} 6. Bg2 {[%clk 0:03:01]}  d5 {[%clk 0:02:58]} 7. O-O {[%clk 0:03:01]}  Bb4 {[%clk 0:02:53]} 8. e5 {[%clk 0:03:00]}  Nfd7 {[%clk 0:02:53]} 9. Ne2 {[%clk 0:03:00]}  Bxf3 {[%clk 0:02:49]} 10. Bxf3 {[%clk 0:02:59]}  Nxe5 {[%clk 0:02:48]} 11. Bg2 {[%clk 0:03:00]}  O-O {[%clk 0:02:43]} 12. d4 {[%clk 0:03:00]}  Ng6 {[%clk 0:02:41]} 13. h4 {[%clk 0:03:00]}  Bd6 {[%clk 0:02:31]} 14. h5 {[%clk 0:03:00]}  Ne7 {[%clk 0:02:31]} 15. h6 {[%clk 0:03:01]}  g6 {[%clk 0:02:31]} 16. c4 {[%clk 0:03:01]}  c5 {[%clk 0:02:28]} 17. cxd5 {[%clk 0:03:00]}  Nxd5 {[%clk 0:02:28]} 18. Nc3 {[%clk 0:02:59]}  Nxc3 {[%clk 0:01:21]} 19. bxc3 {[%clk 0:02:33]}  Nc6 {[%clk 0:01:10]} 20. Rb1 {[%clk 0:02:25]}  Rb8 {[%clk 0:01:06]} 21. Bb2 {[%clk 0:02:17]}  c4 {[%clk 0:00:47]} 22. Qe2 {[%clk 0:02:14]}  Na5 {[%clk 0:00:24]} 23. Bc1 {[%clk 0:02:10]}  b5 {[%clk 0:00:22]} 24. Qg4 {[%clk 0:02:07]}  Qc7 {[%clk 0:00:15]} 25. Qh4 {[%clk 0:02:04]}  f5 {[%clk 0:00:13]} 26. Re1 {[%clk 0:02:03]}  Rbe8 {[%clk 0:00:13]} 27. Rxb5 {[%clk 0:02:02]}  Nc6 {[%clk 0:00:10]} 28. d5 {[%clk 0:01:59]}  Ne5 {[%clk 0:00:07]} 29. dxe6 {[%clk 0:01:57]}  Nd3 {[%clk 0:00:07]} 30. Rd1 {[%clk 0:01:55]}  Nxc1 {[%clk 0:00:07]} 31. Rxc1 {[%clk 0:01:56]}  Kh8 {[%clk 0:00:07]} 32. Qd4+ {[%clk 0:01:54]}  Kg8 {[%clk 0:00:04]} 33. Rb7 {[%clk 0:01:54]}  Be5 {[%clk 0:00:02]} 34. Rxc7 {[%clk 0:01:52]}  Bxd4 {[%clk 0:00:03]} 35. cxd4 {[%clk 0:01:53]}  Rxe6 {[%clk 0:00:00]} 36. Bd5 {[%clk 0:01:53]} 1-0